[Event "16th EWICC 2015"]
[Site "Kutaisi"]
[Date "2015.06.01"]
[Round "1"]
[White "Arabidze, Meri"]
[Black "Zaksaite, Salomeja"]
[Result "1-0"]
[ECO "D85"]
[WhiteElo "2403"]
[BlackElo "2203"]
[Annotator "Robot 11"]
[PlyCount "73"]
[EventDate "2015.??.??"]
[EventCountry "GEO"]
[TimeControl "900+10"]

1. d4 {[%emt 0:00:02]} Nf6 {[%emt 0:00:01]} 2. c4 {[%emt 0:00:02]} g6 {[%emt 0:
00:02]} 3. Nc3 {[%emt 0:00:03]} d5 {[%emt 0:00:01]} 4. cxd5 {[%emt 0:00:02]}
Nxd5 {[%emt 0:00:02]} 5. e4 {[%emt 0:00:05]} Nxc3 {[%emt 0:00:02]} 6. bxc3 {
[%emt 0:00:02]} Bg7 {[%emt 0:00:01]} 7. Bb5+ {[%emt 0:00:09]} c6 {[%emt 0:00:
15]} 8. Ba4 {[%emt 0:00:01]} O-O {[%emt 0:00:06]} 9. Ne2 {[%emt 0:00:03]} e5 {
[%emt 0:00:40]} 10. O-O {[%emt 0:00:05]} Bg4 {[%emt 0:00:10]} 11. f3 {[%emt 0:
00:14]} Be6 {[%emt 0:00:06]} 12. Ba3 {[%emt 0:02:49]} Re8 {[%emt 0:00:13]} 13.
d5 {[%emt 0:00:05]} Bd7 {[%emt 0:00:37]} 14. Rb1 {[%emt 0:00:17]} b6 {[%emt 0:
03:01]} 15. c4 {[%emt 0:00:16]} c5 {[%emt 0:00:43]} 16. Bxd7 {[%emt 0:00:25]}
Nxd7 {[%emt 0:00:05]} 17. Bb2 {[%emt 0:00:07]} Nf6 {[%emt 0:00:57]} 18. Nc1 {
[%emt 0:00:18]} Re7 {[%emt 0:00:22]} 19. Nd3 {[%emt 0:00:05]} Ne8 {[%emt 0:00:
03]} 20. f4 {[%emt 0:00:49]} f6 {[%emt 0:02:23]} 21. Rc1 {[%emt 0:00:40]} exf4
{[%emt 0:01:04]} 22. Nxf4 {[%emt 0:00:45]} Rxe4 {[%emt 0:01:28]} 23. Ne6 {
[%emt 0:00:01]} Qe7 {[%emt 0:00:38]} 24. Qf3 {[%emt 0:00:10]} f5 {[%emt 0:00:
06]} 25. Nxg7 {[%emt 0:01:29]} Nxg7 {[%emt 0:00:02]} 26. Rfd1 {[%emt 0:00:38]}
Qd6 {[%emt 0:02:23]} 27. Qc3 {[%emt 0:00:59]} Re7 {[%emt 0:00:01]} 28. a4 {
[%emt 0:00:02]} h6 {[%emt 0:00:14]} 29. Ra1 {[%emt 0:00:09]} Kh7 {[%emt 0:00:
04]} 30. a5 {[%emt 0:00:18]} Rae8 {[%emt 0:00:12]} 31. axb6 {[%emt 0:01:47]}
axb6 {[%emt 0:00:01]} 32. Re1 {[%emt 0:00:17]} f4 {[%emt 0:00:29]} 33. Rxe7 {
[%emt 0:01:39]} Qxe7 {[%emt 0:00:21]} 34. d6 {[%emt 0:00:47]} Qd7 {[%emt 0:00:
01]} 35. Rf1 {[%emt 0:00:18]} Nh5 {[%emt 0:00:16]} 36. Rd1 {[%emt 0:00:24]} Re3
{[%emt 0:00:02]} 37. Qh8# {[%emt 0:00:04]} 1-0

[Event "16th EWICC 2015"]
[Site "Kutaisi"]
[Date "2015.06.01"]
[Round "1"]
[White "Arakhamia-Grant, Ketevan"]
[Black "Nikoladze, Sopio"]
[Result "1-0"]
[ECO "B07"]
[WhiteElo "2393"]
[BlackElo "2155"]
[Annotator "Robot 11"]
[PlyCount "177"]
[EventDate "2015.??.??"]
[EventCountry "GEO"]
[TimeControl "900+10"]

1. e4 {[%emt 0:00:02]} d6 {[%emt 0:00:05]} 2. d4 {[%emt 0:00:02]} Nf6 {[%emt 0:
00:05]} 3. Nc3 {[%emt 0:00:02]} Nbd7 {[%emt 0:00:03]} 4. Nf3 {[%emt 0:00:02]}
e5 {[%emt 0:00:03]} 5. Bc4 {[%emt 0:00:04]} Be7 {[%emt 0:00:02]} 6. O-O {[%emt
0:00:04]} c6 {[%emt 0:00:18]} 7. a4 {[%emt 0:00:02]} O-O {[%emt 0:00:03]} 8.
Re1 {[%emt 0:00:03]} Qc7 {[%emt 0:00:15]} 9. b3 {[%emt 0:00:07]} b6 {[%emt 0:
00:32]} 10. d5 {[%emt 0:00:03]} c5 {[%emt 0:00:08]} 11. Bd3 {[%emt 0:00:47]}
Ne8 {[%emt 0:00:57]} 12. Ne2 {[%emt 0:00:09]} g6 {[%emt 0:00:05]} 13. Bh6 {
[%emt 0:00:10]} Ng7 {[%emt 0:00:04]} 14. Ng3 {[%emt 0:00:03]} Nf6 {[%emt 0:00:
13]} 15. h3 {[%emt 0:00:03]} Kh8 {[%emt 0:00:10]} 16. Qd2 {[%emt 0:06:59]} Ng8
{[%emt 0:00:22]} 17. h4 {[%emt 0:00:06]} f5 {[%emt 0:01:03]} 18. exf5 {[%emt 0:
00:59]} gxf5 {[%emt 0:03:40]} 19. Bxg7+ {[%emt 0:00:07]} Kxg7 {[%emt 0:00:02]}
20. Ng5 {[%emt 0:00:11]} Qd8 {[%emt 0:00:46]} 21. Rad1 {[%emt 0:02:18]} Bxg5 {
[%emt 0:00:27]} 22. hxg5 {[%emt 0:00:06]} Kg6 {[%emt 0:02:41]} 23. f4 {[%emt 0:
00:22]} exf4 {[%emt 0:00:02]} 24. Qxf4 {[%emt 0:00:08]} Qxg5 {[%emt 0:00:05]}
25. Qxd6+ {[%emt 0:00:55]} Rf6 {[%emt 0:00:07]} 26. Qc7 {[%emt 0:01:13]} Bd7 {
[%emt 0:03:13]} 27. Nf1 {[%emt 0:02:19]} Rf7 {[%emt 0:00:16]} 28. Nh2 {[%emt 0:
00:06]} Be8 {[%emt 0:02:01]} 29. Re6+ {[%emt 0:00:19]} Nf6 30. Nf3 {[%emt 0:00:
05]} Rxc7 {[%emt 0:00:25]} 31. Nxg5 {[%emt 0:00:16]} Kxg5 {[%emt 0:00:02]} 32.
Rf1 {[%emt 0:00:50]} Bg6 {[%emt 0:00:24]} 33. d6 {[%emt 0:00:02]} Rf7 {[%emt 0:
00:05]} 34. Bb5 {[%emt 0:00:13]} Rd8 {[%emt 0:00:08]} 35. Rd1 {[%emt 0:00:10]}
f4 {[%emt 0:00:19]} 36. c3 {[%emt 0:00:18]} Nd7 {[%emt 0:00:27]} 37. Re7 {
[%emt 0:00:14]} Kf6 {[%emt 0:00:06]} 38. Rde1 {[%emt 0:00:01]} Nf8 {[%emt 0:00:
10]} 39. Bc4 {[%emt 0:00:19]} Rg7 {[%emt 0:00:06]} 40. Rf1 {[%emt 0:00:56]}
Rxd6 {[%emt 0:00:08]} 41. Rxg7 {[%emt 0:00:08]} Kxg7 {[%emt 0:00:01]} 42. Rxf4
{[%emt 0:00:02]} Rd1+ {[%emt 0:00:06]} 43. Kf2 {[%emt 0:00:04]} Rd2+ {[%emt 0:
00:04]} 44. Kg3 {[%emt 0:00:03]} Rc2 {[%emt 0:00:05]} 45. Rf3 {[%emt 0:00:03]}
Nd7 {[%emt 0:00:06]} 46. Re3 {[%emt 0:00:02]} Nf6 {[%emt 0:00:03]} 47. Re7+ {
[%emt 0:00:05]} Kh6 {[%emt 0:00:02]} 48. Rxa7 {[%emt 0:00:02]} Rxc3+ {[%emt 0:
00:02]} 49. Kf4 {[%emt 0:00:03]} Rc2 {[%emt 0:00:04]} 50. g3 {[%emt 0:00:14]}
Nh5+ {[%emt 0:00:03]} 51. Kg4 {[%emt 0:00:30]} Rc3 {[%emt 0:00:04]} 52. Rb7 {
[%emt 0:00:08]} Rxg3+ {[%emt 0:00:03]} 53. Kh4 {[%emt 0:00:01]} Re3 {[%emt 0:
00:27]} 54. Rxb6 {[%emt 0:00:03]} Re5 {[%emt 0:00:01]} 55. a5 {[%emt 0:00:21]}
Re4+ {[%emt 0:00:02]} 56. Kh3 {[%emt 0:00:02]} Kg5 {[%emt 0:00:03]} 57. a6 {
[%emt 0:00:15]} Bf5+ {[%emt 0:00:04]} 58. Kg2 {[%emt 0:00:01]} Re1 {[%emt 0:00:
08]} 59. Rb5 {[%emt 0:00:20]} Re5 {[%emt 0:00:19]} 60. Rb8 {[%emt 0:00:35]}
Be4+ {[%emt 0:00:02]} 61. Kf2 {[%emt 0:00:00]} Nf6 {[%emt 0:00:04]} 62. Rc8 {
[%emt 0:00:17]} Nd7 {[%emt 0:00:20]} 63. Bb5 {[%emt 0:00:14]} Nb6 {[%emt 0:00:
03]} 64. Rb8 {[%emt 0:00:01]} Na8 {[%emt 0:00:06]} 65. Bd7 {[%emt 0:00:11]} Re7
{[%emt 0:00:06]} 66. Bb5 {[%emt 0:00:26]} h5 {[%emt 0:00:23]} 67. Rc8 {[%emt 0:
00:05]} Re5 {[%emt 0:00:10]} 68. Bc6 {[%emt 0:00:21]} Bxc6 {[%emt 0:00:09]} 69.
Rxc6 {[%emt 0:00:01]} h4 {[%emt 0:01:14]} 70. Rc8 {[%emt 0:00:05]} Rf5+ {[%emt
0:01:23]} 71. Kg2 {[%emt 0:00:01]} Nb6 {[%emt 0:00:03]} 72. Rb8 {[%emt 0:00:01]
} c4 {[%emt 0:00:07]} 73. Rxb6 {[%emt 0:00:15]} cxb3 {[%emt 0:00:05]} 74. a7 {
[%emt 0:00:09]} Ra5 {[%emt 0:00:02]} 75. Rb5+ {[%emt 0:00:15]} Rxb5 {[%emt 0:
00:01]} 76. a8=Q {[%emt 0:00:01]} b2 {[%emt 0:00:02]} 77. Qd8+ {[%emt 0:00:14]}
Kf4 {[%emt 0:00:38]} 78. Qd4+ {[%emt 0:00:10]} Kg5 {[%emt 0:00:11]} 79. Qe3+ {
[%emt 0:00:16]} Kf6 {[%emt 0:00:14]} 80. Qh6+ {[%emt 0:00:23]} Ke7 {[%emt 0:00:
32]} 81. Qxh4+ {[%emt 0:00:16]} Kd6 {[%emt 0:00:13]} 82. Qd4+ {[%emt 0:00:13]}
Kc7 {[%emt 0:00:07]} 83. Qg7+ {[%emt 0:00:15]} Kb6 {[%emt 0:00:01]} 84. Qg6+ {
[%emt 0:00:02]} Ka5 {[%emt 0:00:06]} 85. Qb1 {[%emt 0:00:02]} Ka4 {[%emt 0:00:
06]} 86. Qa2+ {[%emt 0:00:02]} Kb4 {[%emt 0:00:03]} 87. Qxb2+ {[%emt 0:00:01]}
Ka5 {[%emt 0:00:01]} 88. Qc3+ {[%emt 0:00:02]} Kb6 {[%emt 0:00:02]} 89. Kf2 {
[%emt 0:00:02]} 1-0

[Event "16th EWICC 2015"]
[Site "Kutaisi"]
[Date "2015.06.01"]
[Round "1"]
[White "Charkhalashvili, Inga"]
[Black "Donghvani, Nia"]
[Result "1-0"]
[ECO "D17"]
[WhiteElo "2318"]
[BlackElo "1444"]
[Annotator "Robot 11"]
[PlyCount "101"]
[EventDate "2015.??.??"]
[EventCountry "GEO"]
[TimeControl "900+10"]

1. d4 {[%emt 0:00:02]} d5 {[%emt 0:00:01]} 2. c4 {[%emt 0:00:05]} c6 {[%emt 0:
00:02]} 3. Nc3 {[%emt 0:00:05]} Nf6 {[%emt 0:00:03]} 4. Nf3 {[%emt 0:00:05]}
dxc4 {[%emt 0:00:04]} 5. a4 {[%emt 0:00:08]} Bf5 {[%emt 0:00:04]} 6. Ne5 {
[%emt 0:00:12]} e6 {[%emt 0:00:42]} 7. Nxc4 {[%emt 0:00:07]} Bb4 {[%emt 0:00:
25]} 8. e3 {[%emt 0:00:08]} O-O {[%emt 0:00:16]} 9. Be2 {[%emt 0:00:27]} Ne4 {
[%emt 0:00:27]} 10. Qb3 {[%emt 0:00:15]} Bxc3+ {[%emt 0:00:41]} 11. bxc3 {
[%emt 0:00:07]} b6 {[%emt 0:01:33]} 12. O-O {[%emt 0:00:51]} Nd7 {[%emt 0:01:
01]} 13. f3 {[%emt 0:00:19]} Nef6 {[%emt 0:00:34]} 14. Ba3 {[%emt 0:00:08]} c5
{[%emt 0:00:48]} 15. Nd6 {[%emt 0:00:40]} Bg6 {[%emt 0:01:04]} 16. Rad1 {[%emt
0:01:15]} Nd5 {[%emt 0:01:49]} 17. c4 {[%emt 0:00:05]} Nb4 {[%emt 0:02:15]} 18.
Bxb4 {[%emt 0:00:14]} cxb4 {[%emt 0:00:02]} 19. Qxb4 {[%emt 0:00:09]} Nf6 {
[%emt 0:00:21]} 20. Nb5 {[%emt 0:00:26]} Qd7 {[%emt 0:01:27]} 21. e4 {[%emt 0:
00:39]} Rac8 {[%emt 0:00:52]} 22. e5 {[%emt 0:00:49]} Ne8 {[%emt 0:00:15]} 23.
Rd2 {[%emt 0:00:31]} a6 {[%emt 0:00:33]} 24. Nc3 {[%emt 0:00:11]} Qc6 {[%emt 0:
00:42]} 25. Rb2 {[%emt 0:00:25]} Rb8 {[%emt 0:00:52]} 26. d5 {[%emt 0:00:06]}
exd5 {[%emt 0:00:15]} 27. Nxd5 {[%emt 0:00:09]} Qe6 {[%emt 0:00:53]} 28. Ne7+ {
[%emt 0:00:05]} Kh8 {[%emt 0:00:12]} 29. Nxg6+ {[%emt 0:00:04]} hxg6 {[%emt 0:
00:13]} 30. Qxf8+ {[%emt 0:00:05]} Kh7 {[%emt 0:00:02]} 31. f4 {[%emt 0:00:12]}
Rc8 {[%emt 0:00:19]} 32. Qb4 {[%emt 0:00:52]} a5 {[%emt 0:00:11]} 33. Qxb6 {
[%emt 0:00:07]} Qxb6+ {[%emt 0:00:18]} 34. Rxb6 {[%emt 0:00:04]} Kg8 {[%emt 0:
00:14]} 35. Bg4 {[%emt 0:00:08]} Rd8 {[%emt 0:00:17]} 36. c5 {[%emt 0:00:03]}
Nc7 {[%emt 0:00:04]} 37. Rb7 {[%emt 0:00:03]} Ne6 {[%emt 0:00:04]} 38. Bxe6 {
[%emt 0:00:07]} fxe6 {[%emt 0:00:02]} 39. c6 {[%emt 0:00:02]} Rc8 {[%emt 0:00:
11]} 40. c7 {[%emt 0:00:06]} Kh7 {[%emt 0:00:03]} 41. Rf3 {[%emt 0:00:11]} g5 {
[%emt 0:00:02]} 42. fxg5 {[%emt 0:00:04]} Kg6 {[%emt 0:00:03]} 43. Rc3 {[%emt
0:00:02]} Kxg5 {[%emt 0:00:13]} 44. Rb8 {[%emt 0:00:03]} Rxb8 {[%emt 0:00:03]}
45. cxb8=Q {[%emt 0:00:05]} Kf5 {[%emt 0:00:02]} 46. Rf3+ {[%emt 0:00:09]} Kg4
{[%emt 0:00:03]} 47. h3+ {[%emt 0:00:05]} Kg5 {[%emt 0:00:02]} 48. Qd8+ {[%emt
0:00:02]} Kg6 {[%emt 0:00:01]} 49. Qe7 {[%emt 0:00:20]} Kh5 {[%emt 0:00:06]}
50. Qxg7 {[%emt 0:00:12]} Kh4 {[%emt 0:00:03]} 51. Qg4# {[%emt 0:00:02]} 1-0

[Event "16th EWICC 2015"]
[Site "Kutaisi"]
[Date "2015.06.01"]
[Round "1"]
[White "Charochkina, Daria"]
[Black "Khmiadashvili, Tamar"]
[Result "1-0"]
[ECO "A40"]
[WhiteElo "2391"]
[BlackElo "2043"]
[Annotator "Robot 11"]
[PlyCount "59"]
[EventDate "2015.??.??"]
[EventCountry "GEO"]
[TimeControl "900+10"]

1. d4 {[%emt 0:00:02]} c6 {[%emt 0:00:03]} 2. c4 {[%emt 0:00:02]} g6 {[%emt 0:
00:01]} 3. Nc3 {[%emt 0:00:05]} Bg7 {[%emt 0:00:01]} 4. e4 {[%emt 0:00:02]} d6
{[%emt 0:00:00]} 5. Nf3 {[%emt 0:00:36]} Bg4 {[%emt 0:00:05]} 6. Be3 {[%emt 0:
00:12]} e6 {[%emt 0:00:09]} 7. h3 {[%emt 0:00:05]} Bxf3 {[%emt 0:00:02]} 8.
Qxf3 {[%emt 0:00:02]} Na6 {[%emt 0:00:29]} 9. O-O-O {[%emt 0:00:06]} Bh6 {
[%emt 0:00:41]} 10. e5 {[%emt 0:00:44]} Bxe3+ {[%emt 0:00:35]} 11. Qxe3 {[%emt
0:00:02]} Ne7 {[%emt 0:00:51]} 12. g4 {[%emt 0:00:09]} h5 {[%emt 0:00:34]} 13.
Be2 {[%emt 0:00:05]} d5 {[%emt 0:00:15]} 14. f4 {[%emt 0:00:16]} dxc4 {[%emt 0:
00:33]} 15. Bxc4 {[%emt 0:00:05]} Nd5 {[%emt 0:00:11]} 16. Bxd5 {[%emt 0:00:27]
} cxd5 {[%emt 0:00:02]} 17. Nb5 {[%emt 0:00:04]} Qa5 {[%emt 0:01:17]} 18. Nd6+
{[%emt 0:00:07]} Ke7 {[%emt 0:00:20]} 19. Kb1 {[%emt 0:00:03]} Nb4 {[%emt 0:00:
46]} 20. a3 {[%emt 0:00:03]} Nc6 {[%emt 0:00:03]} 21. f5 {[%emt 0:00:27]} hxg4
{[%emt 0:03:19]} 22. Qg5+ {[%emt 0:00:40]} Kd7 {[%emt 0:00:08]} 23. Qf6 {[%emt
0:00:03]} gxf5 {[%emt 0:00:32]} 24. Qxf7+ {[%emt 0:00:05]} Ne7 {[%emt 0:00:11]}
25. Nxb7 {[%emt 0:00:04]} Qb6 {[%emt 0:03:09]} 26. Nc5+ {[%emt 0:00:02]} Qxc5 {
[%emt 0:00:25]} 27. dxc5 {[%emt 0:00:13]} Rac8 {[%emt 0:02:48]} 28. c6+ {[%emt
0:00:11]} Rxc6 {[%emt 0:00:25]} 29. hxg4 {[%emt 0:00:04]} Re8 {[%emt 0:01:17]}
30. gxf5 {[%emt 0:00:05]} 1-0

[Event "16th EWICC 2015"]
[Site "Kutaisi"]
[Date "2015.06.01"]
[Round "1"]
[White "Choladze, Mariam"]
[Black "Zhukova, Natalia"]
[Result "0-1"]
[ECO "C70"]
[WhiteElo "1989"]
[BlackElo "2456"]
[Annotator "Robot 11"]
[PlyCount "48"]
[EventDate "2015.??.??"]
[EventCountry "GEO"]
[TimeControl "900+10"]

1. e4 {[%emt 0:07:16]} e5 {[%emt 0:00:07]} 2. Nf3 {[%emt 0:00:01]} Nc6 {[%emt
0:00:02]} 3. Bb5 {[%emt 0:00:01]} a6 {[%emt 0:00:05]} 4. Ba4 {[%emt 0:00:02]}
Nge7 {[%emt 0:00:04]} 5. c3 {[%emt 0:00:16]} g6 {[%emt 0:00:04]} 6. d4 {[%emt
0:00:11]} exd4 {[%emt 0:00:02]} 7. cxd4 {[%emt 0:00:00]} b5 {[%emt 0:00:01]} 8.
Bb3 {[%emt 0:00:02]} Bg7 {[%emt 0:00:02]} 9. O-O {[%emt 0:00:04]} O-O {[%emt 0:
00:02]} 10. Nc3 {[%emt 0:00:01]} d6 {[%emt 0:00:02]} 11. Nd5 {[%emt 0:00:15]}
h6 {[%emt 0:01:34]} 12. Be3 {[%emt 0:01:38]} Na5 {[%emt 0:00:29]} 13. Qd2 {
[%emt 0:00:40]} Nxb3 {[%emt 0:00:14]} 14. Nxe7+ {[%emt 0:00:02]} Qxe7 {[%emt 0:
00:01]} 15. axb3 {[%emt 0:00:01]} g5 {[%emt 0:01:54]} 16. Qc2 {[%emt 0:01:21]}
f5 {[%emt 0:00:29]} 17. e5 {[%emt 0:01:05]} g4 {[%emt 0:00:58]} 18. exd6 {
[%emt 0:00:16]} cxd6 {[%emt 0:00:06]} 19. Ne1 {[%emt 0:00:31]} f4 {[%emt 0:00:
02]} 20. Bd2 {[%emt 0:00:04]} Bb7 {[%emt 0:01:48]} 21. Nd3 {[%emt 0:00:51]} Qe4
{[%emt 0:01:16]} 22. Ne1 {[%emt 0:00:02]} Qd5 {[%emt 0:00:45]} 23. Bc3 {[%emt
0:01:19]} Rae8 {[%emt 0:00:36]} 24. f3 {[%emt 0:01:01]} b4 {[%emt 0:00:14]} 0-1

[Event "16th EWICC 2015"]
[Site "Kutaisi"]
[Date "2015.06.01"]
[Round "1"]
[White "Esadze, Tamar"]
[Black "Gvetadze, Sofio"]
[Result "0-1"]
[ECO "B06"]
[WhiteElo "1697"]
[BlackElo "2319"]
[Annotator "Robot 11"]
[PlyCount "78"]
[EventDate "2015.??.??"]
[EventCountry "GEO"]
[TimeControl "900+10"]

1. e4 {[%emt 0:00:01]} c6 {[%emt 0:00:01]} 2. d4 {[%emt 0:00:03]} g6 {[%emt 0:
00:02]} 3. Nc3 {[%emt 0:00:04]} Bg7 {[%emt 0:00:02]} 4. Nf3 {[%emt 0:00:06]} d6
{[%emt 0:00:06]} 5. Be3 {[%emt 0:00:14]} Nd7 {[%emt 0:00:12]} 6. Be2 {[%emt 0:
00:15]} Qc7 {[%emt 0:00:07]} 7. O-O {[%emt 0:00:04]} Ngf6 {[%emt 0:00:03]} 8.
h3 {[%emt 0:00:17]} O-O {[%emt 0:00:14]} 9. Qd2 {[%emt 0:00:22]} b5 {[%emt 0:
00:16]} 10. a3 {[%emt 0:00:34]} Bb7 {[%emt 0:00:41]} 11. Rad1 {[%emt 0:00:43]}
a6 {[%emt 0:00:27]} 12. Rfe1 {[%emt 0:01:02]} c5 {[%emt 0:00:19]} 13. dxc5 {
[%emt 0:01:43]} Nxc5 {[%emt 0:00:13]} 14. Bxc5 {[%emt 0:00:23]} Qxc5 {[%emt 0:
00:09]} 15. Bd3 {[%emt 0:00:31]} Rfd8 {[%emt 0:01:37]} 16. Qe3 {[%emt 0:00:44]}
Qc7 {[%emt 0:01:28]} 17. Nd4 {[%emt 0:01:19]} Rac8 {[%emt 0:01:07]} 18. f4 {
[%emt 0:00:27]} e5 {[%emt 0:00:34]} 19. Nde2 {[%emt 0:01:07]} d5 {[%emt 0:02:
39]} 20. exd5 {[%emt 0:00:44]} Nxd5 {[%emt 0:00:02]} 21. Nxd5 {[%emt 0:00:09]}
Bxd5 {[%emt 0:00:05]} 22. f5 {[%emt 0:01:00]} Qb7 {[%emt 0:00:17]} 23. Ng3 {
[%emt 0:01:24]} Bxg2 {[%emt 0:00:51]} 24. Ne4 {[%emt 0:00:59]} Bxe4 {[%emt 0:
01:01]} 25. Bxe4 {[%emt 0:00:02]} Qe7 {[%emt 0:00:06]} 26. Kh2 {[%emt 0:00:40]}
Rc4 {[%emt 0:01:29]} 27. fxg6 {[%emt 0:00:29]} hxg6 {[%emt 0:00:03]} 28. Bd3 {
[%emt 0:01:09]} Rh4 {[%emt 0:00:21]} 29. Qg3 {[%emt 0:00:16]} e4 {[%emt 0:00:
16]} 30. Qg2 {[%emt 0:00:47]} Be5+ {[%emt 0:00:07]} 31. Kh1 {[%emt 0:00:05]}
exd3 {[%emt 0:00:07]} 32. cxd3 {[%emt 0:00:10]} Qe6 {[%emt 0:00:33]} 33. Re3 {
[%emt 0:00:12]} Qd6 {[%emt 0:00:11]} 34. Rde1 {[%emt 0:00:13]} Bf6 {[%emt 0:00:
32]} 35. b4 {[%emt 0:00:21]} Kg7 {[%emt 0:00:06]} 36. Qf2 {[%emt 0:00:23]} Rf4
{[%emt 0:00:55]} 37. Qg2 {[%emt 0:00:22]} Bh4 {[%emt 0:00:42]} 38. Re8 {[%emt
0:00:30]} Bxe1 {[%emt 0:00:37]} 39. Qb2+ {[%emt 0:00:11]} Qd4 {[%emt 0:00:15]}
0-1

[Event "16th EWICC 2015"]
[Site "Kutaisi"]
[Date "2015.06.01"]
[Round "1"]
[White "Gaprindashvili, Nona"]
[Black "Giorgadze, Elene"]
[Result "1-0"]
[ECO "D10"]
[WhiteElo "2302"]
[BlackElo "1185"]
[Annotator "Robot 11"]
[PlyCount "48"]
[EventDate "2015.??.??"]
[EventCountry "GEO"]
[TimeControl "900+10"]

1. d4 {[%emt 0:00:03]} d5 {[%emt 0:00:03]} 2. c4 {[%emt 0:00:02]} c6 {[%emt 0:
00:14]} 3. cxd5 {[%emt 0:00:14]} cxd5 {[%emt 0:01:36]} 4. Nc3 {[%emt 0:00:02]}
e6 {[%emt 0:01:09]} 5. Bf4 {[%emt 0:00:19]} Bb4 {[%emt 0:02:06]} 6. Qb3 {[%emt
0:00:59]} Bxc3+ {[%emt 0:02:23]} 7. Qxc3 {[%emt 0:00:03]} Nc6 {[%emt 0:00:17]}
8. e3 {[%emt 0:00:29]} h5 {[%emt 0:01:37]} 9. Nf3 {[%emt 0:00:21]} f6 {[%emt 0:
00:47]} 10. h4 {[%emt 0:00:19]} Nge7 {[%emt 0:02:48]} 11. Bd3 {[%emt 0:00:04]}
Qa5 {[%emt 0:01:36]} 12. Qxa5 {[%emt 0:00:23]} Nxa5 {[%emt 0:00:05]} 13. Ke2 {
[%emt 0:00:11]} Kf7 {[%emt 0:00:41]} 14. Rhc1 {[%emt 0:01:33]} Bd7 {[%emt 0:00:
48]} 15. Rc7 {[%emt 0:03:09]} Bc6 {[%emt 0:00:29]} 16. Bd6 {[%emt 0:01:12]}
Rhe8 {[%emt 0:00:33]} 17. Bb4 {[%emt 0:02:08]} Nc4 {[%emt 0:00:15]} 18. b3 {
[%emt 0:00:19]} Nb6 {[%emt 0:00:14]} 19. Bxe7 {[%emt 0:01:04]} Rxe7 {[%emt 0:
00:07]} 20. Bg6+ {[%emt 0:00:03]} Kf8 {[%emt 0:00:19]} 21. Rxe7 {[%emt 0:00:03]
} Kxe7 {[%emt 0:00:02]} 22. Bxh5 {[%emt 0:00:01]} Rc8 {[%emt 0:00:16]} 23. Kd2
{[%emt 0:00:04]} Bb5 {[%emt 0:00:12]} 24. Bg6 {[%emt 0:00:03]} Ra8 1-0

[Event "16th EWICC 2015"]
[Site "Kutaisi"]
[Date "2015.06.01"]
[Round "1"]
[White "Gognadze, Tsira"]
[Black "Dordzhieva, Dinara"]
[Result "0-1"]
[ECO "B90"]
[WhiteElo "1144"]
[BlackElo "2242"]
[Annotator "Robot 11"]
[PlyCount "62"]
[EventDate "2015.??.??"]
[EventCountry "GEO"]
[TimeControl "900+10"]

1. e4 {[%emt 0:00:01]} c5 {[%emt 0:00:04]} 2. Nf3 {[%emt 0:00:02]} d6 {[%emt 0:
00:06]} 3. d4 {[%emt 0:00:01]} cxd4 {[%emt 0:00:05]} 4. Nxd4 {[%emt 0:00:01]}
Nf6 {[%emt 0:00:05]} 5. Nc3 {[%emt 0:00:01]} a6 {[%emt 0:00:07]} 6. f3 {[%emt
0:00:02]} e6 {[%emt 0:00:05]} 7. a4 {[%emt 0:00:13]} Be7 {[%emt 0:00:37]} 8.
Be3 {[%emt 0:00:08]} b6 {[%emt 0:00:10]} 9. Qd2 {[%emt 0:00:35]} Qc7 {[%emt 0:
00:39]} 10. f4 {[%emt 0:01:21]} Bb7 {[%emt 0:00:55]} 11. Bd3 {[%emt 0:00:28]}
Nbd7 {[%emt 0:00:03]} 12. g3 {[%emt 0:00:30]} Nc5 {[%emt 0:01:29]} 13. Rf1 {
[%emt 0:01:33]} Nfxe4 {[%emt 0:00:30]} 14. Nxe4 {[%emt 0:01:34]} Nxe4 {[%emt 0:
00:03]} 15. Bxe4 {[%emt 0:00:50]} Bxe4 {[%emt 0:00:04]} 16. O-O-O {[%emt 0:01:
01]} Rc8 {[%emt 0:01:08]} 17. Rf2 {[%emt 0:01:06]} O-O {[%emt 0:00:58]} 18. c3
{[%emt 0:00:59]} Qc4 {[%emt 0:00:12]} 19. b3 Qxc3+ {[%emt 0:00:10]} 20. Qxc3 {
[%emt 0:01:36]} Rxc3+ {[%emt 0:00:06]} 21. Kd2 {[%emt 0:00:09]} Rfc8 {[%emt 0:
00:18]} 22. Ne2 {[%emt 0:01:26]} Rd3+ {[%emt 0:00:07]} 23. Ke1 {[%emt 0:00:08]}
Rxe3 {[%emt 0:00:05]} 24. Kf1 {[%emt 0:00:21]} Bd3 {[%emt 0:00:08]} 25. Rd2 {
[%emt 0:00:38]} d5 {[%emt 0:00:35]} 26. Kg2 {[%emt 0:00:09]} Bb4 {[%emt 0:00:
07]} 27. Ra2 {[%emt 0:00:23]} Rc2 {[%emt 0:01:22]} 28. Rxc2 {[%emt 0:00:16]}
Bxc2 {[%emt 0:00:02]} 29. Nd4 {[%emt 0:00:01]} Be4+ {[%emt 0:00:01]} 30. Kg1 {
[%emt 0:00:37]} Bc5 {[%emt 0:00:11]} 31. Rd2 {[%emt 0:01:19]} Rd3 {[%emt 0:00:
09]} 0-1